[Event "Titled Tuesday Blitz September 27 Late 2022"]
[White "Rego, Pedro Filipe"]
[Black "Fiorito, Joaquin"]
[WhiteFideId "1904310"]
[BlackFideId "180173"]
[WhiteElo "2125"]
[BlackElo "1758"]
[Result "1-0"]
[Round "09"]
[TimeControl "180+1"]
[Date "2022.09.28"]
[WhiteClock "0:00:06"]
[BlackClock "0:00:03"]

1. c4 {[%clk 0:03:00]}  c6 {[%clk 0:02:58]} 2. d4 {[%clk 0:02:53]}  d5 {[%clk 0:02:58]} 3. e3 {[%clk 0:02:53]}  Nf6 {[%clk 0:02:58]} 4. Nf3 {[%clk 0:02:51]}  Bf5 {[%clk 0:02:57]} 5. Bd3 {[%clk 0:02:50]}  Bxd3 {[%clk 0:02:56]} 6. Qxd3 {[%clk 0:02:51]}  e6 {[%clk 0:02:57]} 7. O-O {[%clk 0:02:47]}  Nbd7 {[%clk 0:02:57]} 8. b3 {[%clk 0:02:47]}  Bd6 {[%clk 0:02:56]} 9. Bb2 {[%clk 0:02:45]}  O-O {[%clk 0:02:52]} 10. Ne5 {[%clk 0:02:37]}  a5 {[%clk 0:02:41]} 11. a3 {[%clk 0:02:35]}  Qc7 {[%clk 0:02:14]} 12. f4 {[%clk 0:02:33]}  Ne4 {[%clk 0:02:12]} 13. Nd2 {[%clk 0:02:29]}  Nxd2 {[%clk 0:02:03]} 14. Qxd2 {[%clk 0:02:28]}  Nf6 {[%clk 0:02:03]} 15. Qe2 {[%clk 0:02:14]}  Ne4 {[%clk 0:02:02]} 16. Nd3 {[%clk 0:02:13]}  a4 {[%clk 0:01:56]} 17. c5 {[%clk 0:02:07]}  Be7 {[%clk 0:01:56]} 18. b4 {[%clk 0:02:08]}  f5 {[%clk 0:01:47]} 19. Nf2 {[%clk 0:02:02]}  Nxf2 {[%clk 0:01:43]} 20. Qxf2 {[%clk 0:01:58]}  g5 {[%clk 0:01:43]} 21. Bc3 {[%clk 0:01:56]}  Kh8 {[%clk 0:01:40]} 22. b5 {[%clk 0:01:51]}  Rg8 {[%clk 0:01:39]} 23. Rab1 {[%clk 0:01:48]}  Rg7 {[%clk 0:01:35]} 24. bxc6 {[%clk 0:01:45]}  bxc6 {[%clk 0:01:35]} 25. Rb6 {[%clk 0:01:38]}  Rag8 {[%clk 0:01:35]} 26. g3 {[%clk 0:01:32]}  h5 {[%clk 0:01:35]} 27. Rfb1 {[%clk 0:01:20]}  gxf4 {[%clk 0:01:29]} 28. exf4 {[%clk 0:01:17]}  h4 {[%clk 0:01:28]} 29. Rb7 {[%clk 0:01:15]}  hxg3 {[%clk 0:01:19]} 30. hxg3 {[%clk 0:01:12]}  Rxg3+ {[%clk 0:01:10]} 31. Kf1 {[%clk 0:01:00]}  Qd8 {[%clk 0:00:38]} 32. Rb8 {[%clk 0:00:53]}  Rxc3 {[%clk 0:00:07]} 33. Rxd8 {[%clk 0:00:47]}  Rxd8 {[%clk 0:00:07]} 34. Qh2+ {[%clk 0:00:43]}  Kg7 {[%clk 0:00:08]} 35. Qg2+ {[%clk 0:00:39]}  Kf7 {[%clk 0:00:07]} 36. Qh2 {[%clk 0:00:33]}  Rg8 {[%clk 0:00:07]} 37. Qh5+ {[%clk 0:00:30]}  Kf6 {[%clk 0:00:05]} 38. Rb7 {[%clk 0:00:25]}  Rc1+ {[%clk 0:00:04]} 39. Kf2 {[%clk 0:00:19]}  Rc2+ {[%clk 0:00:04]} 40. Kf3 {[%clk 0:00:15]}  Rc3+ {[%clk 0:00:04]} 41. Ke2 {[%clk 0:00:10]}  Bf8 {[%clk 0:00:03]} 42. Qf7# {[%clk 0:00:06]} 1-0


[Site "https://www.chess.com"]

[Event "Titled Tuesday Blitz September 27 Late 2022"]
[White "Rios Escobar, Adan"]
[Black "Rose, Felix"]
[WhiteFideId "3403645"]
[BlackFideId "5105722"]
[WhiteElo "2324"]
[BlackElo "2039"]
[Result "1/2-1/2"]
[Round "09"]
[TimeControl "180+1"]
[Date "2022.09.28"]
[WhiteClock "0:00:12"]
[BlackClock "0:00:04"]

1. d4 {[%clk 0:03:00]}  d5 {[%clk 0:02:58]} 2. g3 {[%clk 0:03:00]}  Nf6 {[%clk 0:02:56]} 3. Nf3 {[%clk 0:02:59]}  e6 {[%clk 0:02:53]} 4. Bg2 {[%clk 0:02:56]}  a6 {[%clk 0:02:54]} 5. c4 {[%clk 0:02:54]}  dxc4 {[%clk 0:02:54]} 6. O-O {[%clk 0:02:53]}  Nc6 {[%clk 0:02:55]} 7. e3 {[%clk 0:02:41]}  Rb8 {[%clk 0:02:53]} 8. Nfd2 {[%clk 0:02:40]}  Bd7 {[%clk 0:02:35]} 9. Nxc4 {[%clk 0:02:39]}  Bd6 {[%clk 0:02:33]} 10. Nc3 {[%clk 0:02:34]}  O-O {[%clk 0:02:32]} 11. e4 {[%clk 0:02:29]}  e5 {[%clk 0:02:30]} 12. dxe5 {[%clk 0:02:23]}  Bxe5 {[%clk 0:02:14]} 13. Nxe5 {[%clk 0:02:22]}  Nxe5 {[%clk 0:02:14]} 14. h3 {[%clk 0:02:07]}  Bc6 {[%clk 0:02:04]} 15. Bf4 {[%clk 0:02:06]}  Nd3 {[%clk 0:01:59]} 16. Bg5 {[%clk 0:01:57]}  Nxb2 {[%clk 0:01:44]} 17. Qxd8 {[%clk 0:01:53]}  Rfxd8 {[%clk 0:01:44]} 18. e5 {[%clk 0:01:52]}  Bxg2 {[%clk 0:01:23]} 19. Kxg2 {[%clk 0:01:47]}  Rd3 {[%clk 0:01:20]} 20. exf6 {[%clk 0:01:38]}  Rxc3 {[%clk 0:01:20]} 21. fxg7 {[%clk 0:01:38]}  Rc6 {[%clk 0:00:56]} 22. Rac1 {[%clk 0:01:33]}  Kxg7 {[%clk 0:00:49]} 23. Bf4 {[%clk 0:00:48]}  Rxc1 {[%clk 0:00:24]} 24. Rxc1 {[%clk 0:00:47]}  Nd3 {[%clk 0:00:22]} 25. Bxc7 {[%clk 0:00:47]}  Nxc1 {[%clk 0:00:21]} 26. Bxb8 {[%clk 0:00:47]}  Nxa2 {[%clk 0:00:21]} 27. Kf3 {[%clk 0:00:46]}  b5 {[%clk 0:00:19]} 28. Ke3 {[%clk 0:00:44]}  Kg6 {[%clk 0:00:19]} 29. Kd2 {[%clk 0:00:44]}  a5 {[%clk 0:00:18]} 30. Kc2 {[%clk 0:00:44]}  a4 {[%clk 0:00:19]} 31. Kb2 {[%clk 0:00:39]}  Nb4 {[%clk 0:00:18]} 32. Kc3 {[%clk 0:00:34]}  Nc6 {[%clk 0:00:18]} 33. Bd6 {[%clk 0:00:33]}  Kf5 {[%clk 0:00:16]} 34. f3 {[%clk 0:00:32]}  Ke6 {[%clk 0:00:15]} 35. Bf8 {[%clk 0:00:32]}  Kd5 {[%clk 0:00:15]} 36. h4 {[%clk 0:00:31]}  f5 {[%clk 0:00:15]} 37. g4 {[%clk 0:00:28]}  fxg4 {[%clk 0:00:15]} 38. fxg4 {[%clk 0:00:29]}  Ke6 {[%clk 0:00:16]} 39. Bc5 {[%clk 0:00:26]}  Ke5 {[%clk 0:00:13]} 40. g5 {[%clk 0:00:26]}  Kf5 {[%clk 0:00:14]} 41. Bf2 {[%clk 0:00:24]}  b4+ {[%clk 0:00:10]} 42. Kc4 {[%clk 0:00:21]}  b3 {[%clk 0:00:10]} 43. Kc3 {[%clk 0:00:20]}  Ne5 {[%clk 0:00:08]} 44. Bc5 {[%clk 0:00:13]}  Kg4 {[%clk 0:00:06]} 45. Be7 {[%clk 0:00:13]}  Nc6 {[%clk 0:00:06]} 46. Bf6 {[%clk 0:00:13]}  Kh5 {[%clk 0:00:04]} 47. Kb2 {[%clk 0:00:13]}  Kg6 {[%clk 0:00:05]} 48. Ka3 {[%clk 0:00:13]}  h6 {[%clk 0:00:03]} 49. Kxa4 {[%clk 0:00:13]}  hxg5 {[%clk 0:00:04]} 50. hxg5 {[%clk 0:00:14]}  b2 {[%clk 0:00:03]} 51. Bxb2 {[%clk 0:00:12]}  Kxg5 {[%clk 0:00:04]} 1/2-1/2


[Site "https://www.chess.com"]

[Event "Titled Tuesday Blitz September 27 Late 2022"]
[White "Salinas Herrera, Pablo"]
[Black "Golubev, Mikhail"]
[WhiteFideId "3407128"]
[BlackFideId "14100983"]
[WhiteElo "2550"]
[BlackElo "2374"]
[Result "0-1"]
[Round "09"]
[TimeControl "180+1"]
[Date "2022.09.28"]
[WhiteClock "0:00:02"]
[BlackClock "0:00:05"]

1. e4 {[%clk 0:03:00]}  c5 {[%clk 0:02:57]} 2. Nf3 {[%clk 0:03:00]}  d6 {[%clk 0:02:57]} 3. d4 {[%clk 0:03:01]}  cxd4 {[%clk 0:02:57]} 4. Nxd4 {[%clk 0:03:02]}  Nf6 {[%clk 0:02:57]} 5. Nc3 {[%clk 0:03:02]}  g6 {[%clk 0:02:57]} 6. Be3 {[%clk 0:03:00]}  Bg7 {[%clk 0:02:57]} 7. f3 {[%clk 0:03:01]}  Nc6 {[%clk 0:02:49]} 8. Qd2 {[%clk 0:03:01]}  O-O {[%clk 0:02:49]} 9. g4 {[%clk 0:03:01]}  Nxd4 {[%clk 0:02:47]} 10. Bxd4 {[%clk 0:02:58]}  Be6 {[%clk 0:02:47]} 11. Nd5 {[%clk 0:02:53]}  Bxd5 {[%clk 0:02:31]} 12. exd5 {[%clk 0:02:51]}  Rc8 {[%clk 0:02:31]} 13. h4 {[%clk 0:02:50]}  Qc7 {[%clk 0:02:26]} 14. Rh2 {[%clk 0:02:50]}  e5 {[%clk 0:02:19]} 15. dxe6 {[%clk 0:02:50]}  fxe6 {[%clk 0:02:20]} 16. O-O-O {[%clk 0:02:50]}  Nd5 {[%clk 0:02:19]} 17. Bxg7 {[%clk 0:02:50]}  Qxg7 {[%clk 0:02:14]} 18. Be2 {[%clk 0:02:37]}  Qe5 {[%clk 0:02:11]} 19. Rdh1 {[%clk 0:01:23]}  Rf4 {[%clk 0:02:09]} 20. Kb1 {[%clk 0:01:09]}  Rc3 {[%clk 0:00:46]} 21. Bd1 {[%clk 0:00:20]}  Rb4 {[%clk 0:00:38]} 22. b3 {[%clk 0:00:09]}  Re3 {[%clk 0:00:21]} 23. c4 {[%clk 0:00:09]}  Nc3+ {[%clk 0:00:18]} 24. Kc1 {[%clk 0:00:09]}  b5 {[%clk 0:00:16]} 25. f4 {[%clk 0:00:07]}  Qc5 {[%clk 0:00:13]} 26. Rh3 {[%clk 0:00:04]}  Nxd1 {[%clk 0:00:11]} 27. Kxd1 {[%clk 0:00:02]}  Rxh3 {[%clk 0:00:10]} 28. Rxh3 {[%clk 0:00:03]}  bxc4 {[%clk 0:00:10]} 29. Rc3 {[%clk 0:00:04]}  Qg1+ {[%clk 0:00:09]} 30. Kc2 {[%clk 0:00:04]}  Qxg4 {[%clk 0:00:09]} 31. Re3 {[%clk 0:00:02]}  Qf5+ {[%clk 0:00:09]} 32. Kb2 {[%clk 0:00:03]}  a5 {[%clk 0:00:07]} 33. Qxd6 {[%clk 0:00:02]}  cxb3 {[%clk 0:00:06]} 34. a3 {[%clk 0:00:02]}  Rxf4 {[%clk 0:00:05]} 0-1


[Site "https://www.chess.com"]

[Event "Titled Tuesday Blitz September 27 Late 2022"]
[White "So, Wesley"]
[Black "Yanchenko, Roman"]
[WhiteFideId "5202213"]
[BlackFideId "4137329"]
[WhiteElo "2763"]
[BlackElo "2514"]
[Result "1-0"]
[Round "09"]
[TimeControl "180+1"]
[Date "2022.09.27"]
[WhiteClock "0:00:26"]
[BlackClock "0:00:01"]

1. d4 {[%clk 0:03:00]}  d5 {[%clk 0:02:59]} 2. Nf3 {[%clk 0:02:59]}  Nf6 {[%clk 0:03:00]} 3. c4 {[%clk 0:03:00]}  c6 {[%clk 0:03:00]} 4. Nc3 {[%clk 0:02:59]}  g6 {[%clk 0:03:00]} 5. cxd5 {[%clk 0:02:57]}  cxd5 {[%clk 0:03:00]} 6. Bf4 {[%clk 0:02:57]}  Bg7 {[%clk 0:03:00]} 7. e3 {[%clk 0:02:56]}  O-O {[%clk 0:03:00]} 8. Be2 {[%clk 0:02:54]}  Nc6 {[%clk 0:03:00]} 9. h3 {[%clk 0:02:54]}  a6 {[%clk 0:03:00]} 10. O-O {[%clk 0:02:53]}  e6 {[%clk 0:02:59]} 11. Rc1 {[%clk 0:02:46]}  Bd7 {[%clk 0:02:57]} 12. a3 {[%clk 0:02:39]}  Na5 {[%clk 0:02:41]} 13. Ne5 {[%clk 0:02:33]}  Rc8 {[%clk 0:02:37]} 14. Bg5 {[%clk 0:02:13]}  h6 {[%clk 0:02:28]} 15. Bh4 {[%clk 0:02:14]}  Nc4 {[%clk 0:01:37]} 16. Bxc4 {[%clk 0:01:42]}  dxc4 {[%clk 0:01:37]} 17. Ne4 {[%clk 0:01:35]}  g5 {[%clk 0:01:07]} 18. Nxf6+ {[%clk 0:01:33]}  Bxf6 {[%clk 0:01:07]} 19. Bg3 {[%clk 0:01:33]}  b5 {[%clk 0:01:07]} 20. Qh5 {[%clk 0:01:28]}  Bg7 {[%clk 0:01:05]} 21. h4 {[%clk 0:01:27]}  Bc6 {[%clk 0:01:05]} 22. Ng4 {[%clk 0:01:24]}  gxh4 {[%clk 0:00:43]} 23. Bxh4 {[%clk 0:01:06]}  Qd5 {[%clk 0:00:43]} 24. Nf6+ {[%clk 0:01:02]}  Bxf6 {[%clk 0:00:43]} 25. Qxd5 {[%clk 0:01:03]}  Bxd5 {[%clk 0:00:36]} 26. Bxf6 {[%clk 0:01:04]}  Be4 {[%clk 0:00:37]} 27. f3 {[%clk 0:01:03]}  Bd3 {[%clk 0:00:37]} 28. Rfd1 {[%clk 0:01:02]}  Kh7 {[%clk 0:00:38]} 29. Kf2 {[%clk 0:01:02]}  Kg6 {[%clk 0:00:38]} 30. Be7 {[%clk 0:01:01]}  Rfe8 {[%clk 0:00:38]} 31. Bb4 {[%clk 0:01:01]}  h5 {[%clk 0:00:37]} 32. e4 {[%clk 0:01:00]}  f5 {[%clk 0:00:37]} 33. e5 {[%clk 0:00:53]}  f4 {[%clk 0:00:33]} 34. Rh1 {[%clk 0:00:51]}  Bf5 {[%clk 0:00:31]} 35. Rh4 {[%clk 0:00:51]}  Kg5 {[%clk 0:00:30]} 36. Rxf4 {[%clk 0:00:48]}  Rcd8 {[%clk 0:00:04]} 37. Bd2 {[%clk 0:00:45]}  Kg6 {[%clk 0:00:05]} 38. Rh1 {[%clk 0:00:43]}  Rf8 {[%clk 0:00:04]} 39. Rfh4 {[%clk 0:00:42]}  Rh8 {[%clk 0:00:04]} 40. g4 {[%clk 0:00:42]}  Bd3 {[%clk 0:00:04]} 41. Ba5 {[%clk 0:00:39]}  Rdf8 {[%clk 0:00:04]} 42. Ke3 {[%clk 0:00:36]}  Rf7 {[%clk 0:00:01]} 43. Rxh5 {[%clk 0:00:32]}  Rxh5 {[%clk 0:00:01]} 44. Rxh5 {[%clk 0:00:31]}  Bc2 {[%clk 0:00:02]} 45. Bd8 {[%clk 0:00:30]}  Bd1 {[%clk 0:00:02]} 46. Bf6 {[%clk 0:00:29]}  Rf8 {[%clk 0:00:02]} 47. Rg5+ {[%clk 0:00:29]}  Kh6 {[%clk 0:00:03]} 48. Rg7 {[%clk 0:00:27]}  Ra8 {[%clk 0:00:01]} 49. Kf4 {[%clk 0:00:26]} 1-0


[Site "https://www.chess.com"]

[Event "Titled Tuesday Blitz September 27 Late 2022"]
[White "Storey, Charles H"]
[Black "Mihajlov, Sebastian"]
[WhiteFideId "406686"]
[BlackFideId "1512110"]
[WhiteElo "2188"]
[BlackElo "2464"]
[Result "0-1"]
[Round "09"]
[TimeControl "180+1"]
[Date "2022.09.28"]
[WhiteClock "0:00:01"]
[BlackClock "0:00:19"]

1. e4 {[%clk 0:03:00]}  h6 {[%clk 0:03:00]} 2. d4 {[%clk 0:03:00]}  a6 {[%clk 0:03:01]} 3. Nf3 {[%clk 0:02:59]}  e6 {[%clk 0:03:01]} 4. c4 {[%clk 0:02:58]}  d5 {[%clk 0:03:00]} 5. Nc3 {[%clk 0:02:57]}  dxe4 {[%clk 0:02:55]} 6. Nxe4 {[%clk 0:02:56]}  Nd7 {[%clk 0:02:56]} 7. Be2 {[%clk 0:02:54]}  Ngf6 {[%clk 0:02:56]} 8. Ng3 {[%clk 0:02:51]}  g6 {[%clk 0:02:38]} 9. O-O {[%clk 0:02:50]}  Bg7 {[%clk 0:02:38]} 10. Re1 {[%clk 0:02:40]}  O-O {[%clk 0:02:38]} 11. h3 {[%clk 0:02:31]}  Re8 {[%clk 0:02:37]} 12. Be3 {[%clk 0:02:30]}  b6 {[%clk 0:02:32]} 13. Qd2 {[%clk 0:02:29]}  Kh7 {[%clk 0:02:33]} 14. Rad1 {[%clk 0:02:10]}  Bb7 {[%clk 0:02:33]} 15. Qc2 {[%clk 0:02:05]}  Qe7 {[%clk 0:02:28]} 16. Nh2 {[%clk 0:01:56]}  Rad8 {[%clk 0:02:10]} 17. Bf3 {[%clk 0:01:56]}  c6 {[%clk 0:01:43]} 18. Ng4 {[%clk 0:01:43]}  Nxg4 {[%clk 0:01:43]} 19. hxg4 {[%clk 0:01:43]}  Kg8 {[%clk 0:01:30]} 20. Qc1 {[%clk 0:01:39]}  Qf8 {[%clk 0:01:27]} 21. Ne4 {[%clk 0:01:33]}  c5 {[%clk 0:01:16]} 22. dxc5 {[%clk 0:01:29]}  Bxe4 {[%clk 0:01:16]} 23. Bxe4 {[%clk 0:01:27]}  Nxc5 {[%clk 0:01:17]} 24. Bc6 {[%clk 0:01:22]}  Rxd1 {[%clk 0:01:16]} 25. Rxd1 {[%clk 0:01:23]}  Rd8 {[%clk 0:01:09]} 26. Rxd8 {[%clk 0:01:19]}  Qxd8 {[%clk 0:01:10]} 27. b4 {[%clk 0:01:19]}  Nd3 {[%clk 0:00:54]} 28. Qd2 {[%clk 0:01:16]}  Qc7 {[%clk 0:00:55]} 29. Be4 {[%clk 0:00:34]}  Ne5 {[%clk 0:00:53]} 30. c5 {[%clk 0:00:21]}  bxc5 {[%clk 0:00:52]} 31. bxc5 {[%clk 0:00:19]}  Nxg4 {[%clk 0:00:51]} 32. Bf4 {[%clk 0:00:17]}  Qxc5 {[%clk 0:00:50]} 33. Bf3 {[%clk 0:00:17]}  h5 {[%clk 0:00:33]} 34. Bxg4 {[%clk 0:00:17]}  hxg4 {[%clk 0:00:34]} 35. Qd8+ {[%clk 0:00:17]}  Bf8 {[%clk 0:00:33]} 36. Bh6 {[%clk 0:00:14]}  g3 {[%clk 0:00:26]} 37. Be3 {[%clk 0:00:12]}  gxf2+ {[%clk 0:00:27]} 38. Bxf2 {[%clk 0:00:12]}  Qc1+ {[%clk 0:00:24]} 39. Kh2 {[%clk 0:00:12]}  Qc6 {[%clk 0:00:16]} 40. Bh4 {[%clk 0:00:08]}  Qd6+ {[%clk 0:00:16]} 41. Qxd6 {[%clk 0:00:07]}  Bxd6+ {[%clk 0:00:17]} 42. Kg1 {[%clk 0:00:07]}  f5 {[%clk 0:00:17]} 43. Kf1 {[%clk 0:00:07]}  Kf7 {[%clk 0:00:18]} 44. Ke2 {[%clk 0:00:08]}  e5 {[%clk 0:00:19]} 45. Kf3 {[%clk 0:00:08]}  Ke6 {[%clk 0:00:19]} 46. Be1 {[%clk 0:00:08]}  e4+ {[%clk 0:00:20]} 47. Ke2 {[%clk 0:00:07]}  Kd5 {[%clk 0:00:20]} 48. Bc3 {[%clk 0:00:06]}  Be5 {[%clk 0:00:20]} 49. Ba5 {[%clk 0:00:06]}  f4 {[%clk 0:00:20]} 50. Bb6 {[%clk 0:00:07]}  g5 {[%clk 0:00:20]} 51. Bd8 {[%clk 0:00:05]}  g4 {[%clk 0:00:21]} 52. Bb6 {[%clk 0:00:04]}  f3+ {[%clk 0:00:21]} 53. Kf2 {[%clk 0:00:03]}  g3+ {[%clk 0:00:21]} 54. Kf1 {[%clk 0:00:03]}  Kc4 {[%clk 0:00:19]} 55. Ba7 {[%clk 0:00:02]}  Kd3 {[%clk 0:00:20]} 56. Bb8 {[%clk 0:00:01]}  Bxb8 {[%clk 0:00:19]} 0-1


[Site "https://www.chess.com"]

[Event "Titled Tuesday Blitz September 27 Late 2022"]
[White "Svane, Rasmus"]
[Black "Wieczorek, Oskar"]
[WhiteFideId "4657101"]
[BlackFideId "1133950"]
[WhiteElo "2674"]
[BlackElo "2302"]
[Result "1/2-1/2"]
[Round "09"]
[TimeControl "180+1"]
[Date "2022.09.27"]
[WhiteClock "0:00:04"]
[BlackClock "0:00:06"]

1. Nf3 {[%clk 0:03:00]}  c5 {[%clk 0:02:59]} 2. c4 {[%clk 0:02:58]}  g6 {[%clk 0:02:59]} 3. d4 {[%clk 0:02:57]}  cxd4 {[%clk 0:03:00]} 4. Nxd4 {[%clk 0:02:58]}  Nc6 {[%clk 0:03:00]} 5. e4 {[%clk 0:02:57]}  Nf6 {[%clk 0:02:59]} 6. Nc3 {[%clk 0:02:56]}  d6 {[%clk 0:03:00]} 7. Be2 {[%clk 0:02:53]}  Bg7 {[%clk 0:02:58]} 8. Be3 {[%clk 0:02:52]}  O-O {[%clk 0:02:59]} 9. O-O {[%clk 0:02:52]}  Bd7 {[%clk 0:02:59]} 10. Nc2 {[%clk 0:02:52]}  a5 {[%clk 0:02:55]} 11. Rc1 {[%clk 0:02:45]}  Bc8 {[%clk 0:02:49]} 12. f4 {[%clk 0:02:42]}  Nd7 {[%clk 0:02:49]} 13. Bf3 {[%clk 0:02:31]}  Nc5 {[%clk 0:02:44]} 14. Kh1 {[%clk 0:02:31]}  Nb4 {[%clk 0:02:40]} 15. Ne1 {[%clk 0:02:06]}  Bd7 {[%clk 0:02:14]} 16. a3 {[%clk 0:01:56]}  Nc6 {[%clk 0:02:09]} 17. Rf2 {[%clk 0:01:36]}  a4 {[%clk 0:02:06]} 18. Rb1 {[%clk 0:00:59]}  Na5 {[%clk 0:01:57]} 19. Qe2 {[%clk 0:00:50]}  Ncb3 {[%clk 0:01:47]} 20. Nd5 {[%clk 0:00:43]}  Nd4 {[%clk 0:01:41]} 21. Qd3 {[%clk 0:00:42]}  Nab3 {[%clk 0:01:40]} 22. Nc2 {[%clk 0:00:38]}  Nc5 {[%clk 0:01:31]} 23. Qd1 {[%clk 0:00:34]}  Nxf3 {[%clk 0:01:23]} 24. Qxf3 {[%clk 0:00:35]}  e6 {[%clk 0:01:20]} 25. Nc3 {[%clk 0:00:33]}  Bxc3 {[%clk 0:01:03]} 26. bxc3 {[%clk 0:00:32]}  Bc6 {[%clk 0:01:03]} 27. Bxc5 {[%clk 0:00:32]}  dxc5 {[%clk 0:01:02]} 28. Qe3 {[%clk 0:00:30]}  Qe7 {[%clk 0:00:45]} 29. Ne1 {[%clk 0:00:23]}  e5 {[%clk 0:00:37]} 30. f5 {[%clk 0:00:22]}  Qh4 {[%clk 0:00:37]} 31. Re2 {[%clk 0:00:10]}  Rad8 {[%clk 0:00:37]} 32. Nf3 {[%clk 0:00:09]}  Qf4 {[%clk 0:00:38]} 33. Qxf4 {[%clk 0:00:09]}  exf4 {[%clk 0:00:39]} 34. Ne5 {[%clk 0:00:07]}  Rfe8 {[%clk 0:00:33]} 35. Nxc6 {[%clk 0:00:08]}  bxc6 {[%clk 0:00:34]} 36. fxg6 {[%clk 0:00:08]}  hxg6 {[%clk 0:00:34]} 37. Kg1 {[%clk 0:00:06]}  Rd3 {[%clk 0:00:34]} 38. Rc1 {[%clk 0:00:04]}  Re3 {[%clk 0:00:34]} 39. Kf2 {[%clk 0:00:04]}  R8xe4 {[%clk 0:00:33]} 40. Rxe3 {[%clk 0:00:04]}  Rxe3 {[%clk 0:00:28]} 41. g3 {[%clk 0:00:05]}  g5 {[%clk 0:00:28]} 42. gxf4 {[%clk 0:00:04]}  gxf4 {[%clk 0:00:29]} 43. Rg1+ {[%clk 0:00:04]}  Kh7 {[%clk 0:00:20]} 44. Rg5 {[%clk 0:00:05]}  Rxc3 {[%clk 0:00:20]} 45. Rxc5 {[%clk 0:00:05]}  Rxa3 {[%clk 0:00:19]} 46. Rxc6 {[%clk 0:00:06]}  Rc3 {[%clk 0:00:19]} 47. c5 {[%clk 0:00:04]}  a3 {[%clk 0:00:14]} 48. Ra6 {[%clk 0:00:05]}  Rc2+ {[%clk 0:00:06]} 49. Kf3 {[%clk 0:00:05]}  Rxc5 {[%clk 0:00:04]} 50. Rxa3 {[%clk 0:00:04]}  Rh5 {[%clk 0:00:04]} 51. Kxf4 {[%clk 0:00:03]}  Rxh2 {[%clk 0:00:03]} 52. Kg3 {[%clk 0:00:04]}  Rh6 {[%clk 0:00:02]} 53. Rb3 {[%clk 0:00:03]}  Kg7 {[%clk 0:00:03]} 54. Kf3 {[%clk 0:00:02]}  Rg6 {[%clk 0:00:04]} 55. Kf2 {[%clk 0:00:03]}  Rf6+ {[%clk 0:00:05]} 56. Kg2 {[%clk 0:00:03]}  Kg6 {[%clk 0:00:06]} 57. Kg3 {[%clk 0:00:04]}  Rf5 {[%clk 0:00:06]} 1/2-1/2


[Site "https://www.chess.com"]